Cogmind - Beta 10.2 --- EXPLORER MODE // 2021.06.18 @ 21:47:51 // Winter2019/RPGLIKE Player: H_ Result: Self-destructed Performance ------------- Evolutions (1) 500 Regions Visited (6) 1200 Robots Destroyed (52) 260 Value Destroyed (1497) 1497 Prototype IDs (30) 600 Alien Tech Used (0) 0 Bonus (178) 178 TOTAL SCORE: 4235 Bonus ------- High Alert Combat Kills 96 Aligned with FarCom 300 Friendly Fire -218 Cogmind --------- Core Integrity 362/600 Matter 300/300 Energy 170/170 System Corruption 0% Temperature Cool (0) Movement Walking (85) Ox1 Location -8/Mines Parts ------- > --- POWER (1) -------- Makeshift Power Source > --- PROPULSION (2) --- Potential Leg Potential Leg > --- UTILITY (6) ------ Army-in-a-Box (0/30) > --- WEAPON (2) ------- Improved Assault Rifle EMP Blaster > --- INVENTORY (4) ---- Combat Antigrav System Experimental Sensor Array System Purifier Trap Reconfigurator Peak State ------------ > --- POWER ------------ Makeshift Power Source > --- PROPULSION ------- Potential Leg Potential Leg > --- UTILITY ---------- Army-in-a-Box > --- WEAPON ----------- Improved Assault Rifle EMP Blaster > --- INVENTORY -------- Combat Antigrav System Experimental Sensor Array System Purifier Trap Reconfigurator [Rating: 86] Favorites ----------- Power Light Nuclear Core Engine Light Ion Engine Power Core Light Nuclear Core Reactor Cold Fusion Reactor Propulsion Potential Leg Leg Potential Leg Hover Unit Hover Unit Flight Unit VTOL Module Utility Improved Terrain Scanner Device Improved Terrain Scanner Processor Signal Interpreter Hackware EX Chip 1 Weapon Improved Assault Rifle Energy Gun Medium Laser Ballistic Gun Improved Assault Rifle Launcher EMP Blaster Special Weapon Mining Laser Build | -11 -10 -10 -9 -9 -9 -8 ------- Run | Scr Mat Min Mat Min Exi Min Slots Evolved 7 | 1 . 2 2 . 2 . Power . | . . . . . . . Propulsion 1 | . . . 1 . . . Utility 5 | 1 . 2 . . 2 . Weapon 1 | . . . 1 . . . Parts Attached 50 | 4 17 3 13 3 10 . Power 6 | 1 . . 2 . 3 . Engine 2 | 1 . . . . 1 . Core 3 | . . . 2 . 1 . Reactor 1 | . . . . . 1 . Propulsion 7 | . 2 . 2 1 2 . Treads . | . . . . . . . Leg 2 | . . . . . 2 . Wheel . | . . . . . . . Hover 1 | . 1 . . . . . Flight 4 | . 1 . 2 1 . . Utility 13 | 2 1 1 2 2 5 . Device 10 | 2 1 1 1 2 3 . Storage . | . . . . . . . Processor 1 | . . . 1 . . . Hackware 2 | . . . . . 2 . Protection . | . . . . . . . Artifact . | . . . . . . . Weapon 24 | 1 14 2 7 . . . Energy Gun 2 | 1 1 . . . . . Energy Cannon . | . . . . . . . Ballistic Gun 10 | . 6 1 3 . . . Ballistic Cannon . | . . . . . . . Launcher 9 | . 5 1 3 . . . Special Weapon 3 | . 2 . 1 . . . Impact Weapon . | . . . . . . . Slashing Weapon . | . . . . . . . Piercing Weapon . | . . . . . . . Special Melee Weapon . | . . . . . . . Unidentified Prototypes 5 | . 1 1 . 1 2 . Parts Lost 1 | . . 1 . . . . Power 1 | . . 1 . . . . Propulsion . | . . . . . . . Utility . | . . . . . . . Weapon . | . . . . . . . Highest Loss Streak 1 | . . 1 . . . . Average Slot Usage (%) 79 | . 99 69 88 94 56 54 Engine 5 | . 20 8 . . 1 9 Core 5 | . . . 7 11 7 . Leg 5 | . . . . . 16 18 Hover 2 | . 13 . . . . . Flight 9 | . 6 14 15 22 1 . Device 28 | . 40 31 36 32 10 9 Processor 2 | . . . 5 6 . . Ballistic Gun 10 | . 9 11 10 11 9 9 Launcher 7 | . 2 2 9 11 9 9 Special Weapon 1 | . 5 . 1 . . . Naked Turns . | . . . . . . . Heaviest Build 92 | 7 8 8 15 15 92 91 Greatest Support 75 | 13 16 14 20 25 75 75 Greatest Overweight (x) 1 | . . . . . 1 1 Average Overweight (x) . | . . . . . . 1 Largest Inventory Capacity 4 | 2 2 2 3 4 4 4 Average Capacity 2 | 1 2 2 2 3 4 4 Most Carried 4 | 1 2 2 2 3 4 4 Average Carried 2 | . 1 1 1 1 3 4 Final Capacity 4 | 2 2 2 3 4 4 4 Final Carried 4 | 1 2 2 1 1 4 4 Class Distribution -------------------- 70% | Hacker-Scout 29% | Hacker-Mutant Dominant Class ---------------- Hacker-Scout | -10/Materials Hacker-Scout | -10/Mines Hacker-Scout | -9/Materials Hacker-Scout | -9/Mines Hacker-Mutant | -9/Exiles Hacker-Mutant | -8/Mines Resources | -11 -10 -10 -9 -9 -9 -8 ----------- Run | Scr Mat Min Mat Min Exi Min Matter Collected 1477 | 240 235 238 415 231 118 . Remotely . | . . . . . . . Salvage Created 1595 | 146 262 26 669 419 73 . Parts 100 | 8 23 . 34 25 10 . Haulers Intercepted . | . . . . . . . Recyclers Shooed 1 | . . . 1 . . . Parts Field Recycled . | . . . . . . . Retrieved Matter . | . . . . . . . Parts Self-Destructed . | . . . . . . . Prevented . | . . . . . . . Kills | -11 -10 -10 -9 -9 -9 -8 ------- Run | Scr Mat Min Mat Min Exi Min Combat Hostiles Destroyed 45 | . 10 10 18 7 . . Guns 18 | . 5 2 8 3 . . AOE 27 | . 5 8 10 4 . . Classes Destroyed 11 | 2 4 1 3 . 1 . Worker 1 | . 1 . . . . . Builder 1 | . . . 1 . . . Tunneler 4 | 3 . . . 1 . . Recycler 1 | 1 . . . . . . Watcher 6 | . 3 . 3 . . . Swarmer 2 | . 2 . . . . . Grunt 23 | . 8 . 11 4 . . Duelist 1 | . . . 1 . . . Sentry 8 | . . . 6 2 . . Zionite 3 | . . . . . 3 . Assembled 10 | . . 10 . . . . Thug 1 | . . . . 1 . . Best Kill Streak 10 | 2 4 10 6 4 3 . Combat Bots Only 10 | . 3 10 5 2 . . Max Kills in Single Turn 3 | 1 2 3 3 1 1 . Gunslinging . | . . . . . . . Exploded 3 | . 2 3 2 1 . . Melee . | . . . . . . . Uniques/NPCs Destroyed 5 | . . . . 1 4 . YI-UF0 (-9/Mines) EX-DEC (-9/Exiles) EX-BIN (-9/Exiles) EX-HEX (-9/Exiles) 8R-AWN (-9/Exiles) Combat | -11 -10 -10 -9 -9 -9 -8 -------- Run | Scr Mat Min Mat Min Exi Min Damage Taken 1347 | . 144 624 204 284 91 . Core 1101 | . 120 513 166 232 70 . Absorbed by Shields . | . . . . . . . Redirected to Core 774 | . 64 359 112 169 70 . Core Remaining (%) 54 | 100 . 9 . . . . Volleys Fired 178 | 12 38 23 65 34 6 . Largest 2 | 1 1 1 2 1 1 . Hottest 100 | 50 100 30 100 33 23 . Shots Fired 180 | 12 38 23 67 34 6 . Gun 115 | 12 24 17 43 13 6 . Cannon . | . . . . . . . Launcher 61 | . 11 6 23 21 . . Special 4 | . 3 . 1 . . . Kinetic 101 | . 22 17 43 13 6 . Thermal 18 | 12 5 . 1 . . . Explosive 36 | . 11 6 19 . . . Electromagnetic 25 | . . . 4 21 . . Robot Hit Streak 46 | 12 43 46 18 20 15 . Robot Miss Streak 2 | . . 2 2 1 . . Penetration Max . | . . . . . . . Secondary Targets . | . . . . . . . Shots Hit Robots 152 | 12 31 14 59 30 6 . Core Hits 114 | 5 22 23 41 20 3 . Critical Hits . | . . . . . . . Critical Kills . | . . . . . . . Critical Parts Destroyed . | . . . . . . . Melee Attacks . | . . . . . . . Impact . | . . . . . . . Slashing . | . . . . . . . Piercing . | . . . . . . . Sneak Attacks . | . . . . . . . Combat Hostiles . | . . . . . . . Follow-up Attacks . | . . . . . . . Damage Inflicted 4422 | 153 965 693 1872 639 100 . Guns 1596 | 153 314 182 637 210 100 . Cannons . | . . . . . . . Explosions 2800 | . 625 511 1235 429 . . Melee . | . . . . . . . Ramming . | . . . . . . . Kinetic 1419 | . 290 182 637 210 100 . Thermal 375 | 153 50 . 172 . . . Explosive 2069 | . 625 511 933 . . . Electromagnetic 559 | . . . 130 429 . . Impact . | . . . . . . . Slashing . | . . . . . . . Piercing . | . . . . . . . Highest Corruption . | . . . . . . . Average Corruption . | . . . . . . . Corruption Purged . | . . . . . . . Overload Shots . | . . . . . . . Overflow Damage 106 | . 18 . 88 . . . Projectiles . | . . . . . . . Explosions 106 | . 18 . 88 . . . Melee . | . . . . . . . Knockbacks . | . . . . . . . Impact . | . . . . . . . Kinetic . | . . . . . . . Secondary . | . . . . . . . Self-Inflicted Damage . | . . . . . . . Shots . | . . . . . . . Rammed . | . . . . . . . Targets Rammed . | . . . . . . . Kicked . | . . . . . . . Crushed . | . . . . . . . Highest Temperature 35 | 25 26 12 18 35 . . Average Temperature 10 | 25 10 8 5 16 . . Received Heat Transfer 433 | . 132 40 168 93 . . Siege Activations . | . . . . . . . Robots Corrupted . | . . . . . . . Combat Hostiles . | . . . . . . . Parts Fried 4 | . . . . 4 . . Impact Corruptions . | . . . . . . . Robots Melted . | . . . . . . . Combat Hostiles . | . . . . . . . Parts Melted 4 | 2 2 . . . . . Heat Transferred 668 | 444 124 . 100 . . . Parts Sabotaged . | . . . . . . . Parts Stolen . | . . . . . . . Parts Stripped . | . . . . . . . Power Chain Reactions 1 | . . . 1 . . . Missiles Intercepted . | . . . . . . . Alert | -11 -10 -10 -9 -9 -9 -8 ------- Run | Scr Mat Min Mat Min Exi Min Peak Influence 715 | 20 244 81 715 218 . . Initial 118 | . 9 31 22 118 . . Average 146 | 8 79 54 261 184 . . Maximum Alert Level 3 | . 1 . 3 1 . . Low Security (%) 75 | 100 92 100 53 54 . 100 Level 1 16 | . 7 . 19 45 . . Level 2 7 | . . . 25 . . . Level 3 . | . . . 1 . . . Level 4 . | . . . . . . . Level 5 . | . . . . . . . High Security . | . . . . . . . Max Security . | . . . . . . . Squads Dispatched 3 | . 2 . 1 . . . Investigation 3 | . 2 . 1 . . . Extermination . | . . . . . . . Reinforcement . | . . . . . . . Assault . | . . . . . . . Garrison . | . . . . . . . Intercept . | . . . . . . . Construction Impeded . | . . . . . . . Haulers Reinforced . | . . . . . . . Stealth | -11 -10 -10 -9 -9 -9 -8 --------- Run | Scr Mat Min Mat Min Exi Min Distress Signals 2 | . 1 . 1 . . . Communications Jammed . | . . . . . . . Distress Signals . | . . . . . . . Times Spotted 69 | . 14 12 23 7 12 1 Peak Tracking Total 9 | . 3 9 3 2 9 1 Tactical Retreats 4 | . 1 2 1 . . . Traps | -11 -10 -10 -9 -9 -9 -8 ------- Run | Scr Mat Min Mat Min Exi Min Traps Triggered 3 | . 2 . 1 . . . Indirectly . | . . . . . . . Trap Hack Attempts . | . . . . . . . Triggered . | . . . . . . . Disarmed . | . . . . . . . Reprogrammed 11 | . 3 . 8 . . . Reused 1 | . . . 1 . . . Traps Extracted . | . . . . . . . Installed 5 | . . 5 . . . . Triggered 1 | . . . 1 . . . Machines | -11 -10 -10 -9 -9 -9 -8 ---------- Run | Scr Mat Min Mat Min Exi Min Machines Disabled 14 | . . . 3 . 11 . Max in Single Turn 2 | . . . 2 . . . Machines Sabotaged . | . . . . . . . Garrisons Compromised . | . . . . . . . Overloaded Fab Kills . | . . . . . . . Fab Network Shutdowns . | . . . . . . . Hacking | -11 -10 -10 -9 -9 -9 -8 --------- Run | Scr Mat Min Mat Min Exi Min Machines Accessed 19 | . 9 . 7 1 2 . Terminals 13 | . 7 . 6 . . . Fabricators . | . . . . . . . Repair Stations . | . . . . . . . Recycling Units 3 | . 2 . 1 . . . Scanalyzers . | . . . . . . . Garrison Access . | . . . . . . . Total Hacks 76 | . 45 . 25 1 5 . Successful 67 | . 38 . 23 1 5 . Failed 9 | . 7 . 2 . . . Catastrophic . | . . . . . . . Database Lockouts . | . . . . . . . Manual 47 | . 29 . 17 . 1 . Terminals 61 | . 38 . 23 . . . Fabricators . | . . . . . . . Repair Stations . | . . . . . . . Recycling Units 9 | . 7 . 2 . . . Scanalyzers . | . . . . . . . Garrison Access . | . . . . . . . Terminal Hacks 41 | . 24 . 11 1 5 . Record 4 | . . . . . 4 . Robot Analysis 11 | . 11 . . . . . Prototype ID Bank 1 | . 1 . . . . . Open Door 1 | . . . . 1 . . Branch Access Points 1 | . 1 . . . . . Machine Index 1 | . . . 1 . . . Terminal Index 2 | . 1 . 1 . . . Alert Level 2 | . 2 . . . . . Unreport Threat 3 | . 1 . 2 . . . Locate Traps 8 | . 4 . 4 . . . Reprogram Traps 3 | . 1 . 2 . . . Zone Layout 3 | . 2 . 1 . . . EX-Prototype ID Bank 1 | . . . . . 1 . Fabricator Hacks . | . . . . . . . Repair Station Hacks . | . . . . . . . Recycling Unit Hacks 4 | . 3 . 1 . . . Report Inventory 3 | . 2 . 1 . . . Retrieve Components 1 | . 1 . . . . . Scanalyzer . | . . . . . . . Garrison Access Hacks . | . . . . . . . Unauthorized Hacks 22 | . 11 . 11 . . . Terminals 18 | . 8 . 10 . . . Track 7 | . 4 . 3 . . . Assimilate 2 | . . . 2 . . . Botnet 8 | . 4 . 4 . . . Operators 1 | . . . 1 . . . Fabricators . | . . . . . . . Repair Stations . | . . . . . . . Recycling Units 4 | . 3 . 1 . . . Recyclers 1 | . 1 . . . . . Tunnel 3 | . 2 . 1 . . . Scanalyzers . | . . . . . . . Garrison Access . | . . . . . . . Data Cores Recovered . | . . . . . . . Used . | . . . . . . . Hacking Detections 15 | . 8 . 7 . . . Full Trace Events . | . . . . . . . Feedback Events . | . . . . . . . Feedback Blocked . | . . . . . . . Robot Schematics Acquired . | . . . . . . . Robots Built . | . . . . . . . Matter . | . . . . . . . Time . | . . . . . . . Total Robot Build Rating . | . . . . . . . Part Schematics Acquired . | . . . . . . . Parts Built . | . . . . . . . Matter . | . . . . . . . Time . | . . . . . . . Total Part Build Rating . | . . . . . . . Parts Repaired . | . . . . . . . Time . | . . . . . . . Parts Recycled . | . . . . . . . Recycled Matter . | . . . . . . . Retrieved Matter . | . . . . . . . Retrieved Components 2 | . 2 . . . . . Parts Scanalyzed . | . . . . . . . Part Schematics Acquired . | . . . . . . . Parts Damaged . | . . . . . . . Bothacking | -11 -10 -10 -9 -9 -9 -8 ------------ Run | Scr Mat Min Mat Min Exi Min Used RIF Installer . | . . . . . . . Robots Hacked . | . . . . . . . Non-combat . | . . . . . . . Combat . | . . . . . . . Robot Hacks Applied . | . . . . . . . Relay Couplers Released . | . . . . . . . Robots Rewired . | . . . . . . . Allies Hacked . | . . . . . . . Hacks Repelled . | . . . . . . . Allies | -11 -10 -10 -9 -9 -9 -8 -------- Run | Scr Mat Min Mat Min Exi Min Total Allies 1 | . . . 1 . . . Largest Group 1 | . . . 1 1 . . Highest-Rated Group 10 | . . . 10 10 . . Highest-Rated Ally 10 | . . . 10 10 . . Total Orders 2 | . . . . 1 1 . EXPLORE 1 | . . . . 1 . . RETURN 1 | . . . . . 1 . Ally Attacks 174 | . . . . . 174 . Total Damage 2962 | . . . . . 2962 . Kills 27 | . . . . . 27 . Allies Corrupted . | . . . . . . . Allies Melted 1 | . . 1 . . . . Turrets Deployed 1 | . . . . . 1 . Intel | -11 -10 -10 -9 -9 -9 -8 ------- Run | Scr Mat Min Mat Min Exi Min Robot Analysis Total 11 | . 11 . . . . . Derelict Logs Recovered 1 | . . 1 . . . . Drone Launches 54 | . . . . 16 38 . Drone Recoveries 8 | . . . . . 8 . Exploration | -11 -10 -10 -9 -9 -9 -8 ------------- Run | Scr Mat Min Mat Min Exi Min Turns Passed 2598 | 68 547 298 553 353 758 21 Spaces Moved 3378 | 44 649 580 762 579 740 24 Core 72 | 44 28 . . . . . Treads . | . . . . . . . Legs 612 | . . . . . 588 24 Wheels . | . . . . . . . Hover 305 | . 305 . . . . . Flight 2389 | . 316 580 762 579 152 . Fastest Speed 37 | 50 40 40 37 37 37 85 Average Speed 52 | 50 49 40 39 37 88 85 Slowest Speed 130 | 50 60 40 40 37 130 85 Overloaded Moves 376 | . . . . . 352 24 Propulsion Burnouts . | . . . . . . . Robots Hopped 11 | . . 4 4 3 . . Cave-ins Triggered . | . . . . . . . Exploration Rate (%) 65 | 4 92 95 68 98 92 6 Regions Visited 6 Branch Regions 4 Pre-discovered Areas 6 | . 2 1 1 1 1 . Known Exits Taken 6 | 1 1 1 1 1 1 . Unknown Exits Taken . | . . . . . . . Scrap Searched 2 | . . . . 2 . . Spaces Dug 2 | . 2 . . . . . Terrain Destroyed 279 | . 66 61 152 . . . Melee . | . . . . . . . Projectile 2 | . 2 . . . . . AOE 277 | . 64 61 152 . . . Terrain Rammed . | . . . . . . . Walls Destroyed . | . . . . . . . Machines Disabled . | . . . . . . . Actions | -11 -10 -10 -9 -9 -9 -8 --------- Run | Scr Mat Min Mat Min Exi Min Total 3999 | 75 822 617 941 681 839 24 Wait 311 | 15 102 8 73 52 61 . Move 3350 | 43 648 571 753 572 739 24 Hop 11 | . . 4 4 3 . . Pick Up 11 | 1 2 1 . 1 6 . Fast Attach 27 | 4 7 1 6 1 8 . Attach 4 | . . . 1 1 2 . Detach 6 | . . . . . 6 . Swap 19 | . 10 2 6 1 . . Drop 28 | . 6 1 6 4 11 . Fire 178 | 12 38 23 65 34 6 . Melee . | . . . . . . . Ram . | . . . . . . . Kick . | . . . . . . . Crush . | . . . . . . . Escape Stasis . | . . . . . . . Rewire . | . . . . . . . Trap 5 | . . 5 . . . . Miscellaneous 49 | . 9 1 27 12 . . Route ------- -11/Scrapyard -10/Materials (discovered 4 exits: *Mat x3 / *Min) -10/Mines (discovered 2 exits: *Mat x2) -9/Materials (discovered 4 exits: *Mat x2 / *Min / *Sto) -9/Mines (discovered 4 exits: *Mat x2 / *Exi / *Zio) -9/Exiles -8/Mines History --------- Turn | Location | Event 3 | -11/Scrapyard | Upgraded with Utility slot (x1) 5 | -11/Scrapyard | Identified exit to Materials 5 | -11/Scrapyard | Discovered exit to Materials (range 16) 69 | -11/Scrapyard | Entered Materials 129 | -10/Materials | Identified exit to Mines 139 | -10/Materials | Identified exit to Materials 139 | -10/Materials | Discovered exit to Materials (range 15) 300 | -10/Materials | Build established: Hacker-Scout 424 | -10/Materials | Discovered exit to Materials (range 12) 465 | -10/Materials | Discovered exit to Materials (range 15) 599 | -10/Materials | Reached level 2 616 | -10/Materials | Entered Mines 616 | -10/Mines | Upgraded with Utility slot (x2) 617 | -10/Mines | Assembled infested the area 640 | -10/Mines | Met a Derelict bent on vengeance 679 | -10/Mines | Discovered exit to Materials (range 14) 710 | -10/Mines | Destroyed 10 combat bots 711 | -10/Mines | Found a hidden stash of uninstalled traps 754 | -10/Mines | Discovered exit to Materials (range 10) 791 | -10/Mines | Core integrity fell below 50% 801 | -10/Mines | Core integrity fell below 20% 820 | -10/Mines | Received a Rocket Launcher from a helpful Derelict 839 | -10/Mines | Found a damaged Exp. Sensor Array with a note attached 839 | -10/Mines | Found Prototype Device 839 | -10/Mines | Identified Exp. Sensor Array 845 | -10/Mines | Learned location of Storage (-9) 914 | -10/Mines | Entered Materials 915 | -9/Materials | Core integrity fell below 50% 915 | -9/Materials | Core integrity fell below 20% 916 | -9/Materials | Reached level 3 916 | -9/Materials | Reached level 4 1021 | -9/Materials | Upgraded with Weapon slot (x1) 1239 | -9/Materials | Reached level 5 1245 | -9/Materials | Upgraded with Propulsion slot (x1) 1277 | -9/Materials | Identified exit to Materials 1277 | -9/Materials | Discovered exit to Materials (range 15) 1355 | -9/Materials | Discovered exit to Materials (range 8) 1371 | -9/Materials | Identified exit to Storage 1371 | -9/Materials | Discovered exit to Storage (range 15) 1444 | -9/Materials | Reached level 6 1459 | -9/Materials | Identified exit to Mines 1459 | -9/Materials | Discovered exit to Mines (range 14) 1467 | -9/Materials | Entered Mines 1467 | -9/Mines | Accompanied by 1 ally 1480 | -9/Mines | YI-UF0 nonchalantly dropped a Grenade Launcher on the ground 1507 | -9/Mines | Discovered exit to Materials (range 16) 1578 | -9/Mines | Discovered exit to Materials (range 5) 1594 | -9/Mines | A Derelict revealed a hidden shortcut to a safe place 1609 | -9/Mines | Identified exit to Zion 1667 | -9/Mines | Found the Drone Emporium 1668 | -9/Mines | Found Prototype Device 1670 | -9/Mines | Identified Decoy Drone Bay 1772 | -9/Mines | Reached level 7 1797 | -9/Mines | Destroyed YI-UF0 1819 | -9/Mines | Deemed a non-threat by the Exiles lab entrance 1819 | -9/Mines | Identified exit to Exiles 1819 | -9/Mines | Discovered exit to Exiles (range 5) 1820 | -9/Mines | Entered Exiles 1829 | -9/Exiles | Met 8R-AWN 1836 | -9/Exiles | Met EX-HEX 1859 | -9/Exiles | Met EX-BIN 1865 | -9/Exiles | Aligned with FarCom system 1865 | -9/Exiles | Given EX-Vault access code 1874 | -9/Exiles | Opened EX-Vault 1878 | -9/Exiles | Found Potential Leg 1880 | -9/Exiles | Found Potential Leg 1882 | -9/Exiles | Upgraded with Utility slot (x2) 1888 | -9/Exiles | Found Army-in-a-Box 1892 | -9/Exiles | Found Trap Reconfigurator 1959 | -9/Exiles | Warned to stay clear of 0b10 Research branches 1992 | -9/Exiles | Met EX-DEC 2003 | -9/Exiles | Learned location of Zion (-7) 2052 | -9/Exiles | Visited The Gauntlet 2194 | -9/Exiles | Build established: Hacker-Mutant 2213 | -9/Exiles | Attacked by the Exiles 2213 | -9/Exiles | Allies destroyed EX-DEC 2222 | -9/Exiles | Allies destroyed EX-BIN 2224 | -9/Exiles | Found Deploy-a-Sentry 2229 | -9/Exiles | Allies destroyed EX-HEX 2246 | -9/Exiles | DAS Turret deployed 2269 | -9/Exiles | Allies destroyed 8R-AWN 2278 | -9/Exiles | Found Prototype Device 2278 | -9/Exiles | Identified System Purifier 2544 | -9/Exiles | Identified exit to Mines 2544 | -9/Exiles | Discovered exit to Mines (range 14) 2578 | -9/Exiles | Stole three prototypes: Army-in-a-Box, Potential Leg, Trap Reconfigurator 2578 | -9/Exiles | Entered Mines 2578 | -8/Mines | Accompanied by 8 allies 2599 | -8/Mines | Self-destructed Last Messages --------------- 02428_ J5-HVA destroyed. 02429_ ZX-C33 destroyed. 02429_ Machine disabled. 02434_ The unstable cave ceiling collapses. 02437_ 5L-KAT destroyed. 02440_ AM-PHS destroyed. 02444_ W1-DM0 destroyed. 02445_ GM-J5T destroyed. 02448_ DK-RAY destroyed. 02453_ Dropped Lgt. Nuclear Core. 02454_ Acquired Mak. Power Source. 02460_ Acquired 19 matter. 02544_ EXIT=FOUND: MINES 02556_ Army Drone retrieved by Army-in-a-Box. 02561_ Army Drone released from Army-in-a-Box. LOCATION=MINES GOAL=ESCAPE 02579_ K-01 Serf collects debris. 02598_ C-30 ARC bursts open, deploying its payload. 02598_ H-55 Commando unfolds itself. Map ----- +----------------------------------------------------+ | ?????????????????????????????????????????????????? | | ?????????????????????????????????????????????????? | | ?????????????????????????????????????????????????? | | ?????????????????????????????????????????????????? | | ?????????????????????????????????????????????????? | | ?????????????????????????????????????????????????? | | ?????????????????????????????????????????????????? | | ?????????????????????????????????????????????????? | | ?????????????????????????????????????????????????? | | ?????????????????????????????????????????????????? | | ?????????????????????????????????????????????????? | | ?????????????????????????????????????????????????? | | ?????????????????????????????????????????????????? | | ?????????????????????????????????????????????????? | | ?????????????????????????????????????????????????? | | ?????????????????????????????????????????????????? | | ??????????????????????????????????????###????????? | | ??????????????????????????????????????# ????????? | | ??????????????????????????????????????# #????????? | | ??????????????????????????????????????# #????????? | | ??????????????????????????????????????# #????????? | | ??????????????????????????????????????# #????????? | | ??????????????????????????????????????# #????????? | | ??????????????????????????????????????# #######??? | | ???????????????????# ################## #??? | | ???????????????????# % h @nknnnnnnn k ##### #??? | | ???????????????????# ####################???# #??? | | ?????????????????????????????????????????#### ##?? | | ?????????????????????????????????????????# #?? | | ?????????????????????????????????????????# #?? | | ?????????????????????????????????????????# """#?? | | ?????????????????????????????????????????# """#?? | | ?????????????????????????????????????????# """#?? | | ?????????????????????????????????????????# #?? | | ?????????????????????????????????????????#######?? | | ?????????????????????????????????????????????????? | | ?????????????????????????????????????????????????? | | ?????????????????????????????????????????????????? | | ?????????????????????????????????????????????????? | | ?????????????????????????????????????????????????? | | ?????????????????????????????????????????????????? | | ?????????????????????????????????????????????????? | | ?????????????????????????????????????????????????? | | ?????????????????????????????????????????????????? | | ?????????????????????????????????????????????????? | | ?????????????????????????????????????????????????? | | ?????????????????????????????????????????????????? | | ?????????????????????????????????????????????????? | | ?????????????????????????????????????????????????? | | ?????????????????????????????????????????????????? | +----------------------------------------------------+ Best States ------------- Heat Dissipation 49 Energy Generation 30 Energy Capacity 170 Matter Stores 300 Matter Capacity 300 Sight Range 16 Robot Scan Range 30 Terrain Scan Range 16 Terrain Scan Density 210 Resistance: KI 35 Resistance: TH 35 Resistance: EX 35 Resistance: EM 35 Resistance: I 35 Resistance: S 35 Resistance: P 35 Evasion (%) 62 Offensive Hacking 25 Defensive Hacking 5 Item Schematics ----------------- None Robot Schematics ------------------ None Fabricated ------------ Nothing Alien Tech Used ----------------- None Achievements -------------- None Challenges ------------ None RPGLIKE | -11 -10 -10 -9 -9 -9 -8 --------- Run | Scr Mat Min Mat Min Exi Min Levels Raised 6 | . 1 . 4 1 . . XP Earned 15853 | 6000 1820 725 5258 1200 350 500 XP Spent 14910 | 2490 . 1900 2600 2950 4970 . Upgrades 29 | 9 . 2 5 4 9 . Propulsion Slot 1 | . . . 1 . . . Utility Slot 5 | 1 . 2 . . 2 . Weapon Slot 1 | . . . 1 . . . Heat Dissipation 4 | . . . . 1 3 . Energy Generation 3 | . . . 2 1 . . Mass Support 3 | 2 . . . 1 . . Inventory Capacity 4 | 2 . . 1 1 . . Terrain Scan Density 2 | 2 . . . . . . Ranged Accuracy 2 | . . . . . 2 . Hack Attack % 1 | 1 . . . . . . Hack Defense % 1 | 1 . . . . . . KI Damage % 2 | . . . . . 2 . Protomatter Created 414 | . 65 6 224 119 . . Integrity Restored 994 | . 154 15 594 231 . . Core 863 | . 74 15 594 180 . . Parts 131 | . 80 . . 51 . . Protomatter Decayed 120 | . 10 16 26 55 13 . Game ------ Seed SigixAssembledGreatsword Manual? 0 Play Time 00:55:27 Cumulative 192.8 hours Start 2021.06.18 @ 20:52:01 End 2021.06.18 @ 21:47:51 Sessions 1 Manual Loads 0 Difficulty Explorer Special Mode Winter2019/RPGLIKE Game No. 37 Rogue 12 Adventurer 0 Explorer 25 Win Type - Total 4 Types 2/0/2/0/0/0/0/0/0 Lore% 75 Gallery% 83 Achievement% 70 Wizard Run 0 Options --------- ASCII 0 Keyboard 0 Movement Mouse Keybinds 0 Fullscreen 2 Font 24/Proggy Map View 76x50 Tactical HUD 1 Map Filters NONE Filters NONE Steam 1 RUN: 25a74a6e-b465-408c-ad16-d3cc8f327f18